Cogmind - Beta 13 @@@ ROGUE MODE // 2024.07.06 @ 16:54:29 Player: sinsee Result: Destroyed by U1-A2P(R) with Subdweller Laser Performance ------------- Evolutions (0) 0 Regions Visited (3) 600 Robots Destroyed (4) 20 Value Destroyed (106) 106 Prototype IDs (0) 0 Alien Tech Used (0) 0 Bonus (0) 0 TOTAL SCORE: 726 Bonus ------- None Cogmind --------- Core Integrity 0/250 Matter 255/300 Energy 47/100 System Corruption 0% Temperature Warning (389) Movement Core (50) Location -10/Subcaves Parts ------- > --- POWER (1) -------- (None) > --- PROPULSION (2) --- (None) > --- UTILITY (2) ------ (None) > --- WEAPON (2) ------- (None) > --- INVENTORY (5) ---- Mining Laser Peak State ------------ > --- POWER ------------ Subdweller Power Source > --- PROPULSION ------- Aluminum Leg Aluminum Leg > --- UTILITY ---------- Small Storage Unit > --- WEAPON ----------- Light Assault Rifle Mining Laser > --- INVENTORY -------- Light Treads Light Treads Scrap Shield EM Pulse Gun Grenade Launcher Scrap Shield Fragment [Rating: 8] Favorites ----------- Power Light Ion Engine Engine Light Ion Engine Propulsion Aluminum Leg Treads Light Treads Leg Aluminum Leg Utility Small Storage Unit Storage Small Storage Unit Processor Signal Interpreter Protection Scrap Shield Weapon Light Assault Rifle Energy Gun EM Pulse Gun Ballistic Gun Light Assault Rifle Launcher Grenade Launcher Special Weapon Mining Laser Build | -11 -10 -10 -10 ------- Run | Yrd Mat Min Sub Slots Evolved . | . . . . Power . | . . . . Propulsion . | . . . . Utility . | . . . . Weapon . | . . . . Parts Attached 15 | 6 1 1 7 Power 2 | 1 . . 1 Engine 2 | 1 . . 1 Core . | . . . . Reactor . | . . . . Propulsion 4 | 2 . . 2 Treads 2 | . . . 2 Leg 2 | 2 . . . Wheel . | . . . . Hover . | . . . . Flight . | . . . . Utility 3 | 1 1 . 1 Device . | . . . . Storage 1 | 1 . . . Processor 1 | . 1 . . Hackware . | . . . . Protection 1 | . . . 1 Artifact . | . . . . Weapon 6 | 2 . 1 3 Energy Gun 2 | 1 . . 1 Energy Cannon . | . . . . Ballistic Gun 2 | 1 . . 1 Ballistic Cannon . | . . . . Launcher 1 | . . . 1 Special Weapon 1 | . . 1 . Impact Weapon . | . . . . Slashing Weapon . | . . . . Piercing Weapon . | . . . . Special Melee Weapon . | . . . . Unidentified Prototypes . | . . . . Parts Lost 7 | . . . 7 Power 1 | . . . 1 Propulsion 2 | . . . 2 Utility 1 | . . . 1 Weapon 3 | . . . 3 Highest Loss Streak 7 | . . . 7 To Critical Strikes . | . . . . Average Slot Usage (%) 91 | . 98 100 83 Engine 13 | . 14 14 13 Treads 2 | . . . 4 Leg 25 | . 28 28 22 Storage 13 | . 14 14 13 Processor 7 | . 12 14 . Energy Gun 7 | . 14 3 . Ballistic Gun 13 | . 14 14 13 Launcher 1 | . . . 2 Special Weapon 5 | . . 10 10 Naked Turns 2 | . . . 2 Heaviest Build 14 | 11 11 11 14 Greatest Support 40 | 20 20 20 40 Greatest Overweight (x) 2 | 2 . . . Average Overweight (x) . | . . . . Largest Inventory Capacity 8 | 8 8 8 8 Average Capacity 7 | 7 8 8 7 Most Carried 8 | 4 8 8 8 Average Carried 5 | 2 5 8 6 Final Capacity 8 | 8 8 8 5 Final Carried 8 | 4 8 8 1 Class Distribution -------------------- 100% | Mutant Dominant Class ---------------- Mutant | -10/Materials Mutant | -10/Mines Mutant | -10/Subcaves Resources | -11 -10 -10 -10 ----------- Run | Yrd Mat Min Sub Matter Collected 298 | 233 24 . 41 Remotely . | . . . . Salvage Created 154 | . 94 . 60 Parts 12 | . 10 . 2 Haulers Intercepted . | . . . . Recyclers Shooed . | . . . . Parts Field Recycled . | . . . . Retrieved Matter . | . . . . Parts Self-Destructed 3 | . . . 3 Prevented . | . . . . Kills | -11 -10 -10 -10 ------- Run | Yrd Mat Min Sub Combat Hostiles Destroyed 2 | . 1 . 1 Guns 2 | . 1 . 1 Classes Destroyed 3 | . 2 . 1 Watcher 2 | . 2 . . Grunt 1 | . 1 . . Subdweller 1 | . . . 1 Best Kill Streak 1 | . 1 . 1 Combat Bots Only 1 | . 1 . 1 Max Kills in Single Turn 1 | . 1 . 1 Gunslinging . | . . . . Exploded . | . . . . Melee . | . . . . Uniques/NPCs Destroyed . | . . . . Combat | -11 -10 -10 -10 -------- Run | Yrd Mat Min Sub Hostile Shots Fired 67 | . 4 . 63 Missed 14 | . . . 14 Damage Taken 1207 | . 45 . 1162 Core 269 | . . . 269 Absorbed by Shields . | . . . . Core Remaining (%) 100 | 100 . . . Volleys Fired 35 | . 8 5 22 Largest 2 | . 2 1 2 Hottest 100 | . 60 100 60 Shots Fired 46 | . 16 5 25 Gun 41 | . 16 . 25 Cannon . | . . . . Launcher . | . . . . Special 5 | . . 5 . Kinetic 28 | . 8 . 20 Thermal 5 | . . 5 . Explosive . | . . . . Electromagnetic 13 | . 8 . 5 Robot Hit Streak 18 | . 2 . 18 Robot Miss Streak 2 | . 2 . 1 Penetration Max . | . . . . Secondary Targets 1 | . . . 1 Max Gunslinging Chain 1 | . . . 1 Shots Hit Robots 31 | . 8 . 23 Core Hits 10 | . 5 . 5 Critical Kills 1 | . 1 . . Critical Parts Destroyed . | . . . . Critical Strikes 1 | . 1 . . Destroy 1 | . 1 . . Melee Attacks . | . . . . Impact . | . . . . Slashing . | . . . . Piercing . | . . . . Sneak Attacks . | . . . . Combat Hostiles . | . . . . Follow-up Attacks . | . . . . Damage Inflicted 297 | . 106 . 191 Guns 297 | . 106 . 191 Cannons . | . . . . Explosions . | . . . . Melee . | . . . . Ramming . | . . . . Kinetic 179 | . 40 . 139 Thermal . | . . . . Explosive . | . . . . Electromagnetic 118 | . 66 . 52 Impact . | . . . . Slashing . | . . . . Piercing . | . . . . Highest Corruption . | . . . . Average Corruption . | . . . . Corruption Purged . | . . . . Corruption Blocked . | . . . . Overload Shots . | . . . . Overflow Damage . | . . . . Projectiles . | . . . . Explosions . | . . . . Melee . | . . . . Knockbacks . | . . . . Impact . | . . . . Kinetic . | . . . . Secondary . | . . . . Self-Inflicted Damage . | . . . . Shots . | . . . . Rammed . | . . . . Targets Rammed . | . . . . Kicked . | . . . . Crushed . | . . . . Highest Temperature 422 | . 40 62 422 Average Temperature 64 | . 17 23 272 Received Heat Transfer 882 | . 24 . 858 Siege Activations . | . . . . Robots Corrupted . | . . . . Combat Hostiles . | . . . . Parts Fried . | . . . . Impact Corruptions . | . . . . Robots Melted . | . . . . Combat Hostiles . | . . . . Parts Melted . | . . . . Heat Transferred . | . . . . Parts Sabotaged . | . . . . Parts Stolen . | . . . . Parts Stripped . | . . . . Power Chain Reactions . | . . . . Alert | -11 -10 -10 -10 ------- Run | Yrd Mat Min Sub Peak Influence 81 | . 81 32 . Initial 31 | . . 31 . Average 28 | . 38 31 . Maximum Alert Level . | . . . . Low Security (%) 100 | 100 100 100 . Level 1 . | . . . . Level 2 . | . . . . Level 3 . | . . . . Level 4 . | . . . . Level 5 . | . . . . High Security . | . . . . Max Security . | . . . . Squads Dispatched 1 | . 1 . . Investigation 1 | . 1 . . Extermination . | . . . . Reinforcement . | . . . . Assault . | . . . . Garrison . | . . . . Intercept . | . . . . Searches Triggered . | . . . . Construction Impeded . | . . . . Haulers Reinforced . | . . . . Active Scanning Responses . | . . . . Cargo Convoy Interrupts . | . . . . Stealth | -11 -10 -10 -10 --------- Run | Yrd Mat Min Sub Distress Signals . | . . . . Communications Jammed . | . . . . Distress Signals . | . . . . Times Spotted 13 | . 5 . 8 Peak Tracking Total 6 | . 3 . 6 Tactical Retreats . | . . . . Traps | -11 -10 -10 -10 ------- Run | Yrd Mat Min Sub Traps Triggered . | . . . . Indirectly . | . . . . Trap Hack Attempts . | . . . . Triggered . | . . . . Disarmed . | . . . . Reprogrammed . | . . . . Reused . | . . . . Traps Extracted . | . . . . Installed . | . . . . Triggered . | . . . . Machines | -11 -10 -10 -10 ---------- Run | Yrd Mat Min Sub Machines Disabled . | . . . . Max in Single Turn . | . . . . Machines Repaired . | . . . . Machines Dismantled . | . . . . Machines Sabotaged . | . . . . Overloaded Fab Kills . | . . . . Hacking | -11 -10 -10 -10 --------- Run | Yrd Mat Min Sub Machines Accessed 2 | . 2 . . Terminals 1 | . 1 . . Fabricators . | . . . . Repair Stations . | . . . . Recycling Units 1 | . 1 . . Scanalyzers . | . . . . Garrison Access . | . . . . Total Hacks 5 | . 5 . . Successful 3 | . 3 . . Failed 2 | . 2 . . Catastrophic 1 | . 1 . . Database Lockouts . | . . . . Manual . | . . . . Terminals 3 | . 3 . . Fabricators . | . . . . Repair Stations . | . . . . Recycling Units 2 | . 2 . . Scanalyzers . | . . . . Garrison Access . | . . . . Terminal Hacks 2 | . 2 . . Locate Traps 1 | . 1 . . Maintenance Status 1 | . 1 . . Fabricator Hacks . | . . . . Repair Station Hacks . | . . . . Recycling Unit Hacks 1 | . 1 . . Report Inventory 1 | . 1 . . Scanalyzer . | . . . . Garrison Access Hacks . | . . . . Unauthorized Hacks . | . . . . Terminals . | . . . . Fabricators . | . . . . Repair Stations . | . . . . Recycling Units . | . . . . Scanalyzers . | . . . . Garrison Access . | . . . . Data Cores Recovered . | . . . . Used . | . . . . Hacking Detections 2 | . 2 . . Full Trace Events 1 | . 1 . . Feedback Events . | . . . . Feedback Blocked . | . . . . Robot Schematics Acquired . | . . . . Robots Built . | . . . . Authchips . | . . . . Time . | . . . . Total Robot Build Rating . | . . . . Part Schematics Acquired . | . . . . Parts Built . | . . . . Authchips . | . . . . Time . | . . . . Total Part Build Rating . | . . . . Parts Repaired . | . . . . Time . | . . . . Parts Recycled . | . . . . Recycled Matter . | . . . . Retrieved Matter . | . . . . Retrieved Components . | . . . . Parts Scanalyzed . | . . . . Part Schematics Acquired . | . . . . Parts Damaged . | . . . . Bothacking | -11 -10 -10 -10 ------------ Run | Yrd Mat Min Sub Used RIF Installer . | . . . . Robots Hacked . | . . . . Non-combat . | . . . . Combat . | . . . . Robot Hacks Applied . | . . . . Relay Couplers Released . | . . . . Fabnet Peak Effective % . | . . . . Robots Rewired . | . . . . Allies Hacked . | . . . . Hacks Repelled . | . . . . Allies | -11 -10 -10 -10 -------- Run | Yrd Mat Min Sub Total Allies . | . . . . Largest Group . | . . . . Highest-Rated Group . | . . . . Highest-Rated Ally . | . . . . Total Orders . | . . . . Ally Attacks . | . . . . Total Damage . | . . . . Kills . | . . . . Allies Corrupted . | . . . . Allies Melted . | . . . . Intel | -11 -10 -10 -10 ------- Run | Yrd Mat Min Sub Robot Analysis Total . | . . . . Derelict Logs Recovered . | . . . . Drone Launches . | . . . . Drone Recoveries . | . . . . Exploration | -11 -10 -10 -10 ------------- Run | Yrd Mat Min Sub Turns Passed 791 | 109 311 83 288 Spaces Moved 516 | 79 211 52 174 Core 12 | 12 . . . Treads 3 | . . . 3 Legs 501 | 67 211 52 171 Wheels . | . . . . Hover . | . . . . Flight . | . . . . Fastest Speed 50 | 50 120 120 120 Average Speed 119 | 116 120 120 120 Slowest Speed 160 | 150 120 120 160 Overloaded Moves . | . . . . Propulsion Burnouts . | . . . . Robots Hopped . | . . . . Cave-ins Triggered . | . . . . Exploration Rate (%) 14 | 5 30 17 7 Regions Visited 3 Branch Regions 2 Pre-discovered Areas . | . . . . Known Exits Taken 2 | . 1 1 . Unknown Exits Taken 1 | 1 . . . Scrap Searched . | . . . . Spaces Dug 1 | . . 1 . Terrain Destroyed 1 | . . 1 . Melee . | . . . . Projectile 1 | . . 1 . AOE . | . . . . Terrain Rammed . | . . . . Walls Destroyed . | . . . . Machines Disabled . | . . . . Actions | -11 -10 -10 -10 --------- Run | Yrd Mat Min Sub Total 638 | 92 254 57 235 Wait 54 | 4 31 . 19 Move 513 | 78 210 51 174 Hop . | . . . . Pick Up 11 | 4 4 . 3 Fast Attach 7 | 6 1 . . Attach 3 | . . . 3 Detach . | . . . . Swap 5 | . . 1 4 Drop 10 | . . . 10 Fire 35 | . 8 5 22 Melee . | . . . . Ram . | . . . . Kick . | . . . . Crush . | . . . . Escape Stasis . | . . . . Rewire . | . . . . Trap . | . . . . Miscellaneous . | . . . . Route ------- -11/Scrapyard -10/Materials -10/Mines -10/Subcaves History --------- Turn | Location | Event 23 | -11/Scrapyard | Discovered new exit (range 16) 110 | -11/Scrapyard | Entered Materials 136 | -10/Materials | Discovered new exit (range 8) 304 | -10/Materials | Build established: Mutant 412 | -10/Materials | Identified exit to Mines 421 | -10/Materials | Entered Mines 459 | -10/Mines | Met a Derelict bent on vengeance 495 | -10/Mines | Discovered new exit (range 4) 502 | -10/Mines | Identified exit to Subcaves 504 | -10/Mines | Entered Subcaves 711 | -10/Subcaves | Ambushed by swarm of Subdwellers 746 | -10/Subcaves | Disturbed a concealed Subdweller 766 | -10/Subcaves | Lost 4 allies 789 | -10/Subcaves | Core integrity fell below 50% 791 | -10/Subcaves | Core integrity fell below 20% 792 | -10/Subcaves | Destroyed by U1-A2P(R) with Subdweller Laser Last Messages --------------- 00714_ Q9-6VK(R) suffers critical hit (Destroy). 00714_ XM-9O4(h) destroyed. 00715_ AC-B14(g): "Sorry we're late! Had another grouchy Sub to deal with. Who's the new fellow?" 00716_ U1-A2P(R) emerges from the Twisted Machinery. 00721_ K2-AXU(R) destroyed. 00725_ I3-NG6(g) destroyed. 00736_ Dropped Aluminum Leg. 00773_ Grenade Launcher destroyed. 00775_ Sub. Power Source destroyed. 00775_ Dropped Scrap Shield Fragment. 00776_ Dropped Sml. Storage Unit. 00781_ RR-H33(R) destroyed. 00781_ Switching to secondary target: Q9-6VK(R). 00782_ Scrap Shield destroyed. 00782_ Critical hit (Meltdown: +300). 00784_ Lgt. Treads destroyed. 00786_ Lgt. Assault Rifle destroyed. 00790_ EM Pulse Gun destroyed. 00790_ Critical hit (Meltdown: +270). Map ----- +----------------------------------------------------+ | ???????????????## ???## ##????????????? | | ???????????????? ???# *[#?????????????? | | ???????????????## ??## #?????????????? | | ???????????????# ### | #?????????????? | | ???????????????# ## ##?????????????? | | ??????????????## ## ##?????????????? | | ??????????????# ##????????????? | | ??????????????# #?#####??????? | | ??????????????# # ## ##?????? | | ??????????????# #### #?????? | | ??????????????# ##??# #?????? | | ??????????????##????# #?????? | | ????????????????????# #?????? | | ????????????????????## ### #?????? | | ?????????????????????# ##??# ##?????? | | ????????????????????## ###????###??????? | | ??????????????????### ##??????????????? | | ??????????????????# #####??????????? | | ??????????????????# # ######?????? | | ??????????????????# " ####??? | | ??????????????????## " #??? | | ??????????????????## """ # " "##??? | | ????????????????### ""######"""#???? | | ??????????????### "###???# "" ??? | | ??????????????# RR ## ""##??#"" ? | | ??????????????#@!##""!%= "###""" | | ??????????????#R!R$<$ [ $""" | | ??????????????#%#R< " "" | | ??????????????#= <$< ;#" ###?""?" | | ??????????????#=#### =;;####?????????? | | ??????????????# !%; #????????????? | | ??????????????#####"" *;##????????????? | | ???????????????# = ##?????????????? | | ???????????????# !% #??????????????? | | ???????????????## ##??????????????? | | ????????????????## #???????????????? | | ?????????????????## #???????????????? | | ??????????????????# #???????????????? | | ??????????????????# ???????????????? | | ?????????????????? * ??????????????? | | ????????????????? !%! ??????????????? | | ???????????????? %#### ?????????????? | | ???????????????# "????# ##????????????? | | ???????????????# "????? ?????????????? | | ???????????????## ????? ?????????????? | | ????????????????# ?????###????????????? | | ????????????????# ????????????????????? | | ???????????????? ?????????????????????? | | ???????????????????????????????????????? | | ???????????????????????????????????????? | +----------------------------------------------------+ Best States ------------- Heat Dissipation 25 Energy Generation 15 Energy Capacity 200 Matter Stores 300 Matter Capacity 300 Sight Range 16 Terrain Scan Density 10 Armor Coverage 800 Evasion (%) 55 Recoil Reduction 2 Item Schematics ----------------- None Robot Schematics ------------------ None Fabricated ------------ Nothing Alien Tech Used ----------------- None Achievements -------------- None Challenges ------------ None Game ------ Seed StasisCompactSpear Manual? 0 Play Time 00:13:19 Cumulative 4.8 hours Start 2024.07.06 @ 16:40:23 End 2024.07.06 @ 16:54:29 Sessions 1 Manual Loads 0 Difficulty Rogue Special Mode None Game No. 7 Rogue 4 Adventurer 3 Explorer 0 Win Type - Total 0 Types 0/0/0/0/0/0/0/0/0 Lore% 4 Gallery% 7 Achievement% 7 Wizard Run 0 Options --------- Layout 0 ASCII 0 Keyboard 0 Movement Arrows Keybinds 0 Fullscreen 1 Font 18/SmallcapsGlow Map View 38x25 Zoom Use 99% Tactical HUD 1 Map Filters NONE Filters NONE Steam 1 RUN: 088bff8a-9c78-4daa-9b5f-c1ab51f39ce9